[Event "98th Caplin Hastings Masters 2024-25"]
[Site "Hastings"]
[Date "2024.12.30"]
[Round "4.2"]
[White "Kovchan, Alexander"]
[Black "Kolka, David"]
[Result "1-0"]
[ECO "B12"]
[WhiteElo "2455"]
[BlackElo "2020"]
[Annotator "RC"]
[PlyCount "51"]
[EventDate "2024.12.23"]
[EventType "swiss"]
[EventCountry "ENG"]
[SourceTitle "playchess.com"]
[Source "ChessBase"]
[SourceQuality "1"]
[TimeControl "5400+30"]

1. e4 {[%emt 0:00:04]} c6 {[%emt 0:00:15]} 2. d4 {[%emt 0:00:16]} d5 {[%emt 0:00:04]} 3. e5 {[%emt 0:00:17]} c5 {[%emt 0:00:23]} 4. dxc5 {[%emt 0:00:28]} e6 {[%emt 0:00:05]} 5. Be3 {[%emt 0:00:27]} Nd7 {[%emt 0:00:12]} 6. Bb5 {[%emt 0:00:52]} Ne7 {[%emt 0:05:45]} 7. Bd4 {[%emt 0:01:33]} Nc6 {[%emt 0:07:10]} 8. Bxc6 {[%emt 0:00:51]} bxc6 {[%emt 0:00:02]} 9. b4 {[%emt 0:00:26]} a5 {[%emt 0:06:26]} 10. a3 {[%emt 0:01:35]} Ba6 {[%emt 0:05:10]} 11. f4 {[%emt 0:07:13]} Qb8 {[%emt 0:06:55]} 12. Qd2 {[%emt 0:05:41]} g5 {[%emt 0:18:10]} 13. Nf3 {[%emt 0:14:57]} axb4 {[%emt 0:24:45]} 14. axb4 {[%emt 0:02:22]} gxf4 {[%emt 0:00:35]} 15. Kf2 {[%emt 0:03:38]} h5 {[%emt 0:10:34]} 16. Nc3 {[%emt 0:06:42]} Bh6 {[%emt 0:02:02]} 17. Na4 {[%emt 0:04:14]} Qb7 {[%emt 0:07:55]} 18. Nb6 {[%emt 0:01:09]} Nxb6 {[%emt 0:01:01]} 19. cxb6 {[%emt 0:00:03]} Kd7 {[%emt 0:00:47]} 20. Bc5 {[%emt 0:03:17]} Rhg8 {[%emt 0:00:42]} 21. Ra5 {[%emt 0:01:00]} Bc4 {[%emt 0:00:52]} 22. Rha1 {[%emt 0:02:52]} Rxa5 {[%emt 0:00:48]} 23. Rxa5 {[%emt 0:01:25]} Ra8 {[%emt 0:00:09]} 24. Nd4 {[%emt 0:02:48]} Ra6 {[%emt 0:00:39]} 25. Qd1 {[%emt 0:01:33]} Rxa5 {[%emt 0:00:46]} 26. bxa5 {[%emt 0:00:08]} 1-0

[Event "98th Caplin Hastings Masters 2024-25"]
[Site "Hastings"]
[Date "2024.12.30"]
[Round "4.3"]
[White "Laurent-Paoli, Pierre"]
[Black "Gormally, Daniel W"]
[Result "1/2-1/2"]
[ECO "B96"]
[WhiteElo "2559"]
[BlackElo "2424"]
[Annotator "RC"]
[PlyCount "86"]
[EventDate "2024.12.23"]
[EventType "swiss"]
[EventCountry "ENG"]
[SourceTitle "playchess.com"]
[Source "ChessBase"]
[SourceQuality "1"]
[TimeControl "5400+30"]

1. e4 {[%emt 0:04:13]} c5 {[%emt 0:00:38]} 2. Nf3 {[%emt 0:00:04]} d6 {[%emt 0:00:15]} 3. d4 {[%emt 0:00:04]} cxd4 {[%emt 0:00:29]} 4. Nxd4 {[%emt 0:00:05]} Nf6 {[%emt 0:00:04]} 5. Nc3 {[%emt 0:00:07]} a6 {[%emt 0:00:03]} 6. Bg5 {[%emt 0:00:11]} e6 {[%emt 0:02:13]} 7. f4 {[%emt 0:01:56]} Qc7 {[%emt 0:00:21]} 8. Bxf6 {[%emt 0:08:48]} gxf6 {[%emt 0:00:07]} 9. Qd2 {[%emt 0:05:42]} Nc6 {[%emt 0:00:09]} 10. O-O-O {[%emt 0:00:28]} h5 {[%emt 0:03:30]} 11. Kb1 {[%emt 0:00:40]} Bd7 {[%emt 0:04:59]} 12. Nxc6 {[%emt 0:15:34]} bxc6 {[%emt 0:09:24]} 13. Bc4 {[%emt 0:00:28]} Be7 {[%emt 0:04:17]} 14. Rhe1 {[%emt 0:08:55]} Rb8 {[%emt 0:02:04]} 15. f5 {[%emt 0:04:05]} Qa5 {[%emt 0:03:52]} 16. Bb3 {[%emt 0:04:43]} Qe5 {[%emt 0:05:37]} 17. Ne2 {[%emt 0:18:24]} c5 {[%emt 0:04:21]} 18. fxe6 {[%emt 0:02:39]} fxe6 {[%emt 0:00:54]} 19. Nf4 {[%emt 0:01:47]} Rg8 {[%emt 0:06:18]} 20. c3 {[%emt 0:02:33]} a5 {[%emt 0:01:24]} 21. Bc4 {[%emt 0:00:26]} Kd8 {[%emt 0:03:03]} 22. g3 {[%emt 0:02:29]} a4 {[%emt 0:03:46]} 23. Nd3 {[%emt 0:05:05]} Qg5 {[%emt 0:00:16]} 24. Qxg5 {[%emt 0:04:16]} Rxg5 {[%emt 0:01:44]} 25. Nf4 {[%emt 0:03:11]} Re5 {[%emt 0:01:32]} 26. h4 {[%emt 0:01:39]} Bc6 {[%emt 0:01:58]} 27. Kc1 {[%emt 0:01:00]} Bxe4 {[%emt 0:06:07]} 28. Nxe6+ {[%emt 0:00:40]} Ke8 {[%emt 0:00:47]} 29. Nf4 {[%emt 0:01:50]} Kd7 {[%emt 0:04:36]} 30. Be6+ {[%emt 0:01:15]} Kc7 {[%emt 0:03:21]} 31. Bd5 {[%emt 0:00:12]} Bf5 {[%emt 0:05:24]} 32. Be6 {[%emt 0:00:48]} Bxe6 {[%emt 0:03:46]} 33. Nxe6+ {[%emt 0:00:03]} Kc6 {[%emt 0:00:05]} 34. Nf4 {[%emt 0:00:59]} Rg8 {[%emt 0:00:33]} 35. Nxh5 {[%emt 0:01:09]} Rxh5 {[%emt 0:04:55]} 36. Rxe7 {[%emt 0:00:03]} Rxg3 {[%emt 0:00:05]} 37. Re6 {[%emt 0:01:47]} Rd5 {[%emt 0:00:29]} 38. Rxd5 {[%emt 0:00:36]} Kxd5 {[%emt 0:00:07]} 39. Rxf6 {[%emt 0:00:12]} Rg1+ {[%emt 0:00:08]} 40. Kc2 {[%emt 0:00:40]} Rg2+ {[%emt 0:00:06]} 41. Kc1 {[%emt 0:00:32]} Rg1+ {[%emt 0:01:42]} 42. Kc2 {[%emt 0:00:05]} Rg2+ {[%emt 0:00:04]} 43. Kb1 {[%emt 0:00:34]} Rg1+ {[%emt 0:00:07]} 1/2-1/2

[Event "98th Caplin Hastings Masters 2024-25"]
[Site "Hastings"]
[Date "2024.12.30"]
[Round "4.4"]
[White "Siva Mahadevan"]
[Black "Ghazarian, Kirk"]
[Result "1/2-1/2"]
[ECO "B32"]
[WhiteElo "2349"]
[BlackElo "2501"]
[Annotator "RC"]
[PlyCount "95"]
[EventDate "2024.12.23"]
[EventType "swiss"]
[EventCountry "ENG"]
[SourceTitle "playchess.com"]
[Source "ChessBase"]
[SourceQuality "1"]
[TimeControl "5400+30"]

1. e4 {[%emt 0:18:06]} c5 {[%emt 0:00:28]} 2. Nf3 {[%emt 0:00:08]} Nc6 {[%emt 0:00:17]} 3. d4 {[%emt 0:00:10]} cxd4 {[%emt 0:00:10]} 4. Nxd4 {[%emt 0:00:06]} e5 {[%emt 0:00:17]} 5. Nb5 {[%emt 0:00:37]} d6 {[%emt 0:00:32]} 6. N1c3 {[%emt 0:00:34]} a6 {[%emt 0:00:31]} 7. Na3 {[%emt 0:00:06]} Be7 {[%emt 0:00:21]} 8. Nc4 {[%emt 0:00:23]} b5 {[%emt 0:01:18]} 9. Ne3 {[%emt 0:00:07]} Nf6 {[%emt 0:00:11]} 10. g3 {[%emt 0:00:05]} h5 {[%emt 0:00:05]} 11. Bg2 {[%emt 0:00:19]} h4 {[%emt 0:00:23]} 12. O-O {[%emt 0:00:09]} h3 {[%emt 0:00:04]} 13. Bh1 {[%emt 0:00:38]} Rb8 {[%emt 0:01:38]} 14. Ncd5 {[%emt 0:02:03]} Nxd5 {[%emt 0:00:25]} 15. Nxd5 {[%emt 0:00:21]} Be6 {[%emt 0:00:17]} 16. c3 {[%emt 0:00:33]} Qd7 {[%emt 0:00:24]} 17. Be3 {[%emt 0:01:48]} Bd8 {[%emt 0:00:29]} 18. Re1 {[%emt 0:15:32]} Ne7 {[%emt 0:06:04]} 19. f4 {[%emt 0:30:09]} Bxd5 {[%emt 0:18:18]} 20. exd5 {[%emt 0:00:54]} exf4 {[%emt 0:00:26]} 21. Bxf4 {[%emt 0:01:55]} Bb6+ {[%emt 0:00:17]} 22. Kf1 {[%emt 0:04:29]} O-O {[%emt 0:03:03]} 23. Be4 {[%emt 0:01:46]} f5 {[%emt 0:25:33]} 24. Bc2 {[%emt 0:02:05]} Ng6 {[%emt 0:04:16]} 25. Qh5 {[%emt 0:05:43]} Nxf4 {[%emt 0:00:41]} 26. gxf4 {[%emt 0:00:02]} Qc7 {[%emt 0:01:58]} 27. Qxh3 {[%emt 0:02:14]} Qc4+ {[%emt 0:02:02]} 28. Kg2 {[%emt 0:00:17]} Qxf4 {[%emt 0:00:41]} 29. Qf3 {[%emt 0:01:11]} Qg5+ {[%emt 0:03:54]} 30. Kh1 {[%emt 0:00:09]} Rf6 {[%emt 0:00:27]} 31. Re6 {[%emt 0:01:31]} Rbf8 {[%emt 0:00:37]} 32. Rae1 {[%emt 0:00:13]} b4 {[%emt 0:09:11]} 33. Qg3 {[%emt 0:06:20]} Qxg3 {[%emt 0:06:13]} 34. hxg3 {[%emt 0:00:02]} bxc3 {[%emt 0:00:07]} 35. bxc3 {[%emt 0:00:04]} Bf2 {[%emt 0:02:07]} 36. Rf1 {[%emt 0:00:25]} Bxg3 {[%emt 0:00:23]} 37. Rxf6 {[%emt 0:00:06]} Rxf6 {[%emt 0:02:05]} 38. Bxf5 {[%emt 0:00:07]} Rh6+ {[%emt 0:00:38]} 39. Kg2 {[%emt 0:00:20]} Be5 {[%emt 0:00:08]} 40. Be6+ {[%emt 0:00:09]} Kh7 {[%emt 0:00:09]} 41. Rh1 {[%emt 0:03:17]} Bxc3 {[%emt 0:00:22]} 42. Rxh6+ {[%emt 0:00:19]} gxh6 {[%emt 0:00:01]} 43. Bc8 {[%emt 0:00:29]} a5 {[%emt 0:00:04]} 44. a4 {[%emt 0:00:13]} Kg6 {[%emt 0:00:14]} 45. Bd7 {[%emt 0:00:13]} Kf6 {[%emt 0:00:09]} 46. Kh3 {[%emt 0:00:13]} h5 {[%emt 0:00:15]} 47. Kh4 {[%emt 0:00:30]} Ke5 {[%emt 0:00:05]} 48. Bc6 {[%emt 0:00:05]} 1/2-1/2

[Event "98th Caplin Hastings Masters 2024-25"]
[Site "Hastings"]
[Date "2024.12.30"]
[Round "4.5"]
[White "Seo, Jung Min"]
[Black "Vestby-Ellingsen, Mads"]
[Result "0-1"]
[ECO "B52"]
[WhiteElo "2491"]
[BlackElo "2383"]
[Annotator "RC"]
[PlyCount "76"]
[EventDate "2024.12.23"]
[EventType "swiss"]
[EventCountry "ENG"]
[SourceTitle "playchess.com"]
[Source "ChessBase"]
[SourceQuality "1"]
[TimeControl "5400+30"]

1. e4 {[%emt 0:00:01]} c5 {[%emt 0:02:02]} 2. Nf3 {[%emt 0:00:05]} d6 {[%emt 0:00:15]} 3. Bb5+ {[%emt 0:00:03]} Bd7 {[%emt 0:01:28]} 4. Bxd7+ {[%emt 0:08:16]} Nxd7 {[%emt 0:01:05]} 5. O-O {[%emt 0:00:16]} Ngf6 {[%emt 0:00:11]} 6. Re1 {[%emt 0:01:30]} e6 {[%emt 1:28:29]} 7. b3 {[%emt 0:03:29]} Be7 {[%emt 0:00:00]} 8. Bb2 {[%emt 0:00:06]} O-O {[%emt 0:00:00]} 9. c4 {[%emt 0:01:00]} a6 {[%emt 0:01:30]} 10. d4 {[%emt 0:05:10]} cxd4 {[%emt 0:00:00]} 11. Nxd4 {[%emt 0:00:01]} Rc8 {[%emt 0:01:00]} 12. Nc3 {[%emt 0:00:28]} Qa5 {[%emt 0:00:30]} 13. Qd2 {[%emt 0:01:49]} Rfe8 {[%emt 0:00:30]} 14. Rad1 {[%emt 1:15:16]} Bf8 {[%emt 0:00:30]} 15. h3 {[%emt 0:00:30]} h6 {[%emt 0:00:30]} 16. Re3 {[%emt 0:00:30]} Ne5 {[%emt 0:00:30]} 17. f4 {[%emt 0:00:30]} Ng6 {[%emt 0:00:30]} 18. f5 {[%emt 0:00:00]} Ne5 {[%emt 0:00:30]} 19. Nd5 {[%emt 0:00:00]} Qd8 {[%emt 0:00:30]} 20. fxe6 {[%emt 0:00:00]} fxe6 {[%emt 0:00:30]} 21. Nxf6+ {[%emt 0:00:00]} Qxf6 {[%emt 0:00:30]} 22. Nf3 {[%emt 0:00:00]} Nxf3+ {[%emt 0:00:00]} 23. Rxf3 {[%emt 0:00:00]} Qg6 {[%emt 0:00:00]} 24. Qd3 {[%emt 0:00:00]} b5 {[%emt 0:01:30]} 25. cxb5 {[%emt 0:00:00]} axb5 {[%emt 0:00:30]} 26. Rg3 {[%emt 0:00:00]} Qh5 {[%emt 0:00:30]} 27. Rf1 {[%emt 0:05:00]} Rc7 {[%emt 0:00:30]} 28. Rgf3 {[%emt 0:00:30]} Ra7 {[%emt 0:00:30]} 29. a3 {[%emt 0:00:30]} Rb7 {[%emt 0:00:00]} 30. Kh1 {[%emt 0:00:00]} Rc8 {[%emt 0:01:00]} 31. Qe2 {[%emt 0:00:00]} Qg6 {[%emt 0:00:00]} 32. Qf2 {[%emt 0:00:00]} Be7 {[%emt 0:01:00]} 33. Rg3 {[%emt 0:00:00]} Bg5 {[%emt 0:00:00]} 34. Qe2 {[%emt 0:00:17]} Rbc7 {[%emt 0:01:00]} 35. Bd4 {[%emt 0:02:43]} Rc1 {[%emt 0:00:30]} 36. Rgf3 {[%emt 0:00:00]} R8c2 37. Rf8+ {[%emt 0:01:00]} Kh7 {[%emt 0:01:00]} 38. Qf3 {[%emt 0:00:00]} Rxf1+ {[%emt 0:00:30]} 0-1

[Event "98th Caplin Hastings Masters 2024-25"]
[Site "Hastings"]
[Date "2024.12.30"]
[Round "4.6"]
[White "Pick, Freddie"]
[Black "Roux, Baptiste"]
[Result "0-1"]
[ECO "B45"]
[WhiteElo "1874"]
[BlackElo "2338"]
[Annotator "RC"]
[PlyCount "94"]
[EventDate "2024.12.23"]
[EventType "swiss"]
[EventCountry "ENG"]
[SourceTitle "playchess.com"]
[Source "ChessBase"]
[SourceQuality "1"]
[TimeControl "5400+30"]

1. e4 {[%emt 0:00:01]} c5 {[%emt 0:02:53]} 2. Nf3 {[%emt 0:00:04]} Nc6 {[%emt 0:00:30]} 3. d4 {[%emt 0:00:04]} cxd4 {[%emt 0:00:09]} 4. Nxd4 {[%emt 0:00:03]} Nf6 {[%emt 0:00:25]} 5. Nc3 {[%emt 0:00:05]} e6 {[%emt 0:01:25]} 6. Bf4 {[%emt 0:00:04]} Bc5 {[%emt 0:01:41]} 7. Ndb5 {[%emt 0:00:18]} O-O {[%emt 0:00:46]} 8. Bc7 {[%emt 0:00:05]} Qe7 {[%emt 0:00:11]} 9. Bd6 {[%emt 0:00:05]} Bxd6 {[%emt 0:00:04]} 10. Qxd6 {[%emt 0:00:04]} Qd8 {[%emt 0:00:08]} 11. O-O-O {[%emt 0:00:09]} a6 {[%emt 0:00:07]} 12. Nd4 {[%emt 0:00:04]} Ne7 {[%emt 0:00:06]} 13. h4 {[%emt 0:02:38]} Ne8 {[%emt 0:01:43]} 14. Qg3 {[%emt 0:02:37]} b5 {[%emt 0:03:09]} 15. Bd3 {[%emt 0:02:11]} b4 {[%emt 0:12:24]} 16. Nce2 {[%emt 0:02:53]} d6 {[%emt 0:09:05]} 17. Kb1 {[%emt 0:05:08]} e5 {[%emt 0:10:14]} 18. Nf3 {[%emt 0:11:18]} Qc7 {[%emt 0:02:22]} 19. Nd2 {[%emt 0:06:57]} a5 {[%emt 0:10:26]} 20. h5 {[%emt 0:05:54]} h6 {[%emt 0:24:24]} 21. Qh4 {[%emt 0:08:32]} f5 {[%emt 0:02:45]} 22. f3 {[%emt 0:03:40]} Ba6 {[%emt 0:01:53]} 23. g4 {[%emt 0:08:41]} fxe4 {[%emt 0:00:12]} 24. fxe4 {[%emt 0:02:37]} d5 {[%emt 0:01:50]} 25. Ng3 {[%emt 0:05:10]} Bxd3 {[%emt 0:02:05]} 26. cxd3 {[%emt 0:00:05]} Ra6 {[%emt 0:00:23]} 27. Nf5 {[%emt 0:00:50]} Nxf5 {[%emt 0:02:32]} 28. gxf5 {[%emt 0:00:03]} Nf6 {[%emt 0:00:48]} 29. Rc1 {[%emt 0:01:29]} Qd7 {[%emt 0:00:59]} 30. Nb3 {[%emt 0:03:48]} Qb5 {[%emt 0:01:21]} 31. exd5 {[%emt 0:10:49]} Qxd3+ {[%emt 0:00:31]} 32. Ka1 {[%emt 0:00:06]} Qxf5 {[%emt 0:01:36]} 33. Rhf1 {[%emt 0:02:36]} Qxh5 {[%emt 0:01:49]} 34. Qxh5 {[%emt 0:00:20]} Nxh5 {[%emt 0:00:01]} 35. Rxf8+ {[%emt 0:00:10]} Kxf8 {[%emt 0:00:01]} 36. Re1 {[%emt 0:00:12]} Nf6 {[%emt 0:01:05]} 37. Rxe5 {[%emt 0:00:36]} Rd6 {[%emt 0:01:19]} 38. Nxa5 {[%emt 0:01:06]} Rxd5 {[%emt 0:01:23]} 39. Rxd5 {[%emt 0:00:08]} Nxd5 {[%emt 0:00:01]} 40. Nc4 {[%emt 0:06:34]} h5 {[%emt 0:00:43]} 41. Ne5 {[%emt 0:02:20]} Ke7 {[%emt 0:01:12]} 42. a4 {[%emt 0:01:47]} bxa3 {[%emt 0:00:10]} 43. bxa3 {[%emt 0:00:06]} Kf6 {[%emt 0:00:13]} 44. Nf3 {[%emt 0:00:25]} g5 {[%emt 0:00:20]} 45. Kb2 {[%emt 0:00:13]} g4 {[%emt 0:00:23]} 46. Ne1 {[%emt 0:01:10]} h4 {[%emt 0:00:21]} 47. Nd3 {[%emt 0:00:30]} g3 {[%emt 0:00:30]} 0-1

[Event "98th Caplin Hastings Masters 2024-25"]
[Site "Hastings"]
[Date "2024.12.30"]
[Round "4.7"]
[White "Lucas, Arthur"]
[Black "Zhang, Pengxiang"]
[Result "0-1"]
[ECO "C01"]
[WhiteElo "2335"]
[BlackElo "2567"]
[Annotator "ChessBase"]
[PlyCount "118"]
[EventDate "2024.12.23"]
[EventType "swiss"]
[EventCountry "ENG"]
[SourceTitle "playchess.com"]
[Source "ChessBase"]
[SourceQuality "1"]
[TimeControl "5400+30"]

1. e4 {[%emt 0:03:47]} e6 {[%emt 0:00:05]} 2. d4 {[%emt 0:00:17]} d5 {[%emt 0:00:04]} 3. exd5 {[%emt 0:04:32]} exd5 {[%emt 0:00:36]} 4. Nf3 {[%emt 0:00:05]} Nc6 {[%emt 0:00:03]} 5. Bb5 {[%emt 0:00:24]} Bd6 {[%emt 0:00:20]} 6. c4 {[%emt 0:00:11]} dxc4 {[%emt 0:01:00]} 7. d5 {[%emt 0:00:06]} a6 {[%emt 0:00:03]} 8. Ba4 {[%emt 0:00:26]} b5 {[%emt 0:00:14]} 9. dxc6 {[%emt 0:00:03]} bxa4 {[%emt 0:00:06]} 10. O-O {[%emt 0:00:05]} Ne7 {[%emt 0:00:16]} 11. Nbd2 {[%emt 0:00:06]} Be6 {[%emt 0:00:15]} 12. Qxa4 {[%emt 0:00:10]} c3 {[%emt 0:00:10]} 13. Ne4 {[%emt 0:11:12]} Bd5 {[%emt 0:00:38]} 14. bxc3 {[%emt 0:09:09]} Bxc6 {[%emt 0:02:13]} 15. Nxd6+ {[%emt 0:07:38]} Qxd6 {[%emt 0:09:31]} 16. Qg4 {[%emt 0:01:17]} h5 {[%emt 0:10:08]} 17. Qg3 {[%emt 0:06:44]} Qxg3 {[%emt 0:00:41]} 18. fxg3 {[%emt 0:02:30]} Bxf3 {[%emt 0:01:30]} 19. Rxf3 {[%emt 0:11:14]} f6 {[%emt 0:00:49]} 20. Ba3 {[%emt 0:02:23]} Nc6 {[%emt 0:01:11]} 21. Rd1 {[%emt 0:02:28]} Ne5 {[%emt 0:09:38]} 22. Rf4 {[%emt 0:00:53]} Kf7 {[%emt 0:00:28]} 23. Rfd4 {[%emt 0:03:22]} Rhb8 {[%emt 0:06:28]} 24. h3 {[%emt 0:03:25]} Rb6 {[%emt 0:05:30]} 25. Rd5 {[%emt 0:05:29]} Rb5 {[%emt 0:06:02]} 26. Bb4 {[%emt 0:10:44]} Ke6 {[%emt 0:11:34]} 27. Rd8 {[%emt 0:04:56]} Rbb8 {[%emt 0:05:14]} 28. R8d5 {[%emt 0:02:33]} Rb5 {[%emt 0:08:12]} 29. Rd8 {[%emt 0:00:06]} Rxd8 {[%emt 0:07:08]} 30. Rxd8 {[%emt 0:00:04]} a5 {[%emt 0:00:26]} 31. a4 {[%emt 0:03:40]} Rb7 {[%emt 0:03:13]} 32. Bxa5 {[%emt 0:01:59]} Ra7 {[%emt 0:00:05]} 33. Bb4 {[%emt 0:00:18]} Rxa4 {[%emt 0:00:02]} 34. Rd2 {[%emt 0:01:44]} Ra6 {[%emt 0:07:22]} 35. Bc5 {[%emt 0:00:37]} Rc6 {[%emt 0:00:44]} 36. Bd4 {[%emt 0:00:12]} Rc4 {[%emt 0:00:01]} 37. Kf2 {[%emt 0:02:23]} c5 {[%emt 0:00:15]} 38. Bxe5 {[%emt 0:00:21]} fxe5 {[%emt 0:00:08]} 39. Rc2 {[%emt 0:01:02]} Ra4 {[%emt 0:05:01]} 40. Ke3 {[%emt 0:00:25]} Ra1 {[%emt 0:00:41]} 41. c4 {[%emt 0:01:28]} Re1+ {[%emt 0:00:22]} 42. Kf2 {[%emt 0:00:30]} Re4 {[%emt 0:00:06]} 43. Kf3 {[%emt 0:00:21]} Kf5 {[%emt 0:00:13]} 44. Rc3 {[%emt 0:00:32]} g5 {[%emt 0:00:09]} 45. Kf2 {[%emt 0:00:37]} g4 {[%emt 0:00:09]} 46. Rc2 {[%emt 0:00:24]} Ke6 {[%emt 0:02:15]} 47. Rc1 {[%emt 0:00:27]} Kf6 {[%emt 0:00:16]} 48. Rc2 {[%emt 0:00:29]} Kf5 {[%emt 0:00:04]} 49. Rc1 {[%emt 0:00:41]} Rd4 {[%emt 0:00:04]} 50. Ke3 {[%emt 0:00:26]} e4 {[%emt 0:00:05]} 51. Rf1+ {[%emt 0:00:33]} Ke5 {[%emt 0:00:05]} 52. hxg4 {[%emt 0:00:29]} Rd3+ {[%emt 0:00:43]} 53. Ke2 {[%emt 0:00:32]} hxg4 {[%emt 0:00:07]} 54. Rf8 {[%emt 0:00:25]} Kd4 {[%emt 0:02:42]} 55. Rf4 {[%emt 0:00:27]} Rxg3 {[%emt 0:01:28]} 56. Kf2 {[%emt 0:00:01]} Rc3 {[%emt 0:00:11]} 57. Rxg4 {[%emt 0:00:05]} Rc2+ {[%emt 0:00:47]} 58. Ke1 {[%emt 0:00:20]} Kd3 {[%emt 0:00:21]} 59. Kd1 {[%emt 0:01:36]} e3 {[%emt 0:00:25]} 0-1

[Event "98th Caplin Hastings Masters 2024-25"]
[Site "Hastings"]
[Date "2024.12.30"]
[Round "4.8"]
[White "Stefansson, Vignir Vatnar"]
[Black "Lux, Hugo de Melo"]
[Result "1-0"]
[ECO "E06"]
[WhiteElo "2537"]
[BlackElo "2327"]
[Annotator "RC"]
[PlyCount "89"]
[EventDate "2024.12.23"]
[EventType "swiss"]
[EventCountry "ENG"]
[SourceTitle "playchess.com"]
[Source "ChessBase"]
[SourceQuality "1"]
[TimeControl "5400+30"]

1. Nf3 {[%emt 0:01:08]} Nf6 {[%emt 0:01:49]} 2. c4 {[%emt 0:00:07]} e6 {[%emt 0:00:05]} 3. g3 {[%emt 0:00:43]} d5 {[%emt 0:00:20]} 4. d4 {[%emt 0:01:57]} Be7 {[%emt 0:00:26]} 5. Bg2 {[%emt 0:00:08]} Ne4 {[%emt 0:00:17]} 6. Nc3 {[%emt 0:01:40]} f5 {[%emt 0:00:09]} 7. O-O {[%emt 0:01:36]} c6 {[%emt 0:00:08]} 8. Nxe4 {[%emt 0:01:49]} fxe4 {[%emt 0:00:07]} 9. Ne5 {[%emt 0:00:35]} Nd7 {[%emt 0:00:09]} 10. Nxd7 {[%emt 0:01:53]} Bxd7 {[%emt 0:00:05]} 11. f3 {[%emt 0:00:19]} O-O {[%emt 0:00:52]} 12. b3 {[%emt 0:07:40]} exf3 {[%emt 0:01:01]} 13. Bxf3 {[%emt 0:01:58]} Be8 {[%emt 0:07:19]} 14. Bf4 {[%emt 0:07:25]} Bf6 {[%emt 0:02:22]} 15. c5 {[%emt 0:08:33]} Bg6 {[%emt 0:07:46]} 16. Qd2 {[%emt 0:00:38]} b6 {[%emt 0:07:48]} 17. Rfc1 {[%emt 0:05:02]} Rc8 {[%emt 0:09:04]} 18. b4 {[%emt 0:02:32]} h6 {[%emt 0:12:40]} 19. a4 {[%emt 0:01:17]} bxc5 {[%emt 0:01:22]} 20. bxc5 {[%emt 0:02:08]} Re8 {[%emt 0:04:31]} 21. Qb2 {[%emt 0:01:51]} Qa5 {[%emt 0:02:23]} 22. e3 {[%emt 0:01:50]} Bd8 {[%emt 0:11:05]} 23. Qb7 {[%emt 0:23:17]} Bc7 {[%emt 0:01:47]} 24. Ra2 {[%emt 0:01:05]} Bd3 {[%emt 0:03:57]} 25. Bg4 {[%emt 0:01:11]} Kh8 {[%emt 0:07:51]} 26. Bd6 {[%emt 0:01:56]} Qa6 {[%emt 0:05:10]} 27. Rb2 {[%emt 0:01:24]} Rb8 {[%emt 0:02:15]} 28. Qxa6 {[%emt 0:04:44]} Bxa6 {[%emt 0:00:02]} 29. Rxb8 {[%emt 0:00:17]} Bxb8 {[%emt 0:00:01]} 30. Bxb8 {[%emt 0:00:24]} Rxb8 {[%emt 0:00:02]} 31. Bxe6 {[%emt 0:00:09]} Rb4 {[%emt 0:00:58]} 32. Bd7 {[%emt 0:00:35]} Bb7 {[%emt 0:00:06]} 33. Rf1 {[%emt 0:01:23]} a5 {[%emt 0:00:43]} 34. Rf8+ {[%emt 0:00:44]} Kh7 {[%emt 0:00:01]} 35. Bf5+ {[%emt 0:01:01]} g6 {[%emt 0:00:01]} 36. Rf7+ {[%emt 0:00:23]} Kg8 {[%emt 0:00:02]} 37. Bxg6 {[%emt 0:00:07]} Bc8 {[%emt 0:00:25]} 38. Rc7 {[%emt 0:02:35]} Bh3 {[%emt 0:00:02]} 39. Be8 {[%emt 0:02:57]} Rxa4 {[%emt 0:00:45]} 40. Bxc6 {[%emt 0:00:18]} Ra1+ {[%emt 0:00:06]} 41. Kf2 {[%emt 0:00:03]} Ra2+ {[%emt 0:00:03]} 42. Kf3 {[%emt 0:00:18]} Bg2+ {[%emt 0:00:10]} 43. Kf4 {[%emt 0:00:06]} a4 {[%emt 0:00:08]} 44. Ra7 {[%emt 0:00:10]} a3 {[%emt 0:00:01]} 45. Ke5 {[%emt 0:00:12]} 1-0

[Event "98th Caplin Hastings Masters 2024-25"]
[Site "Hastings"]
[Date "2024.12.30"]
[Round "4.9"]
[White "Kaasen, Tor Fredrik"]
[Black "Nielsen, Andre"]
[Result "1-0"]
[ECO "E44"]
[WhiteElo "2473"]
[BlackElo "2276"]
[Annotator "ChessBase"]
[PlyCount "95"]
[EventDate "2024.12.23"]
[EventType "swiss"]
[EventCountry "ENG"]
[SourceTitle "playchess.com"]
[Source "ChessBase"]
[SourceQuality "1"]
[TimeControl "5400+30"]

1. d4 {[%emt 0:02:16]} Nf6 {[%emt 0:00:21]} 2. c4 {[%emt 0:00:35]} e6 {[%emt 0:00:22]} 3. Nc3 {[%emt 0:00:23]} Bb4 {[%emt 0:00:47]} 4. e3 {[%emt 0:00:20]} b6 {[%emt 0:01:49]} 5. Nge2 {[%emt 0:00:29]} Ne4 {[%emt 0:01:28]} 6. Bd2 {[%emt 0:00:17]} Nxd2 {[%emt 0:00:30]} 7. Qxd2 {[%emt 0:00:09]} Bb7 {[%emt 0:00:44]} 8. a3 {[%emt 0:01:19]} Be7 {[%emt 0:00:49]} 9. Nf4 {[%emt 0:01:28]} d6 {[%emt 0:05:43]} 10. Bd3 {[%emt 0:03:06]} Nd7 {[%emt 0:10:52]} 11. Be4 {[%emt 0:04:32]} Qc8 {[%emt 0:04:25]} 12. g4 {[%emt 0:05:05]} Nf6 {[%emt 0:03:23]} 13. Bxb7 {[%emt 0:06:30]} Qxb7 {[%emt 0:00:20]} 14. O-O-O {[%emt 0:03:02]} g5 {[%emt 0:15:02]} 15. Nh3 {[%emt 0:07:06]} Nxg4 {[%emt 0:09:36]} 16. e4 {[%emt 0:02:36]} h6 {[%emt 0:03:10]} 17. f4 {[%emt 0:05:10]} O-O-O {[%emt 0:12:20]} 18. Qe2 {[%emt 0:03:27]} Nf6 {[%emt 0:00:45]} 19. fxg5 {[%emt 0:00:39]} Nd7 {[%emt 0:09:46]} 20. Rhf1 {[%emt 0:13:55]} Rdf8 {[%emt 0:00:31]} 21. g6 {[%emt 0:06:23]} fxg6 {[%emt 0:00:27]} 22. Qg4 {[%emt 0:02:22]} Re8 {[%emt 0:07:17]} 23. Qxg6 {[%emt 0:14:02]} Qa6 {[%emt 0:02:08]} 24. Kc2 {[%emt 0:03:48]} Bd8 {[%emt 0:02:05]} 25. Nb5 {[%emt 0:01:26]} Qb7 {[%emt 0:01:00]} 26. Qg2 {[%emt 0:01:59]} Rhg8 {[%emt 0:01:57]} 27. Qe2 {[%emt 0:00:12]} e5 {[%emt 0:02:07]} 28. d5 {[%emt 0:00:42]} Kb8 {[%emt 0:00:47]} 29. Rf5 {[%emt 0:01:57]} Qc8 {[%emt 0:00:56]} 30. Qf3 {[%emt 0:02:16]} a6 {[%emt 0:01:01]} 31. Nc3 {[%emt 0:00:04]} Ref8 {[%emt 0:00:51]} 32. Rg1 {[%emt 0:01:59]} Bg5 {[%emt 0:00:36]} 33. Rf1 {[%emt 0:01:08]} Rxf5 {[%emt 0:00:30]} 34. exf5 {[%emt 0:00:07]} Nf6 {[%emt 0:01:47]} 35. Ne4 {[%emt 0:01:11]} Nxe4 {[%emt 0:00:46]} 36. Qxe4 {[%emt 0:00:03]} Bf6 {[%emt 0:00:16]} 37. Nf2 {[%emt 0:00:51]} Qe8 {[%emt 0:00:47]} 38. Ng4 {[%emt 0:00:56]} Qf8 {[%emt 0:00:09]} 39. Rg1 {[%emt 0:00:54]} Qg7 {[%emt 0:00:59]} 40. Rg3 {[%emt 0:03:32]} Bh4 {[%emt 0:00:41]} 41. f6 {[%emt 0:00:19]} Qg6 {[%emt 0:00:35]} 42. Qxg6 {[%emt 0:01:03]} Rxg6 {[%emt 0:00:06]} 43. f7 {[%emt 0:00:06]} Be7 {[%emt 0:00:52]} 44. Nxe5 {[%emt 0:00:05]} Rxg3 {[%emt 0:00:33]} 45. Nc6+ {[%emt 0:00:06]} Kb7 {[%emt 0:00:30]} 46. hxg3 {[%emt 0:00:07]} Bf8 {[%emt 0:00:07]} 47. Nd8+ {[%emt 0:00:07]} Kc8 {[%emt 0:00:08]} 48. Ne6 {[%emt 0:00:05]} 1-0